fUSD/lending_fUSD_20250611
["ID","MTS","AMOUNT","RATE_DAILY","PERIOD"]
[365421062,1749661861115,-557.04,0.00019671,2]
[365421063,1749661861124,-524.57,0.00019671,2]
[365421064,1749661861134,-490.0,0.00019671,2]
[365421065,1749661861144,-490.0,0.00019671,2]
[365421066,1749661861153,-777.72,0.00019671,2]
[365421067,1749661861162,-1110.89,0.00019671,2]
[365421068,1749661861172,-490.0,0.00019671,2]
[365421069,1749661861182,-490.0,0.00019671,2]
[365421070,1749661861191,-490.0,0.00019671,2]
[365421071,1749661861201,-161.23,0.00019671,2]
[365421072,1749661861210,-490.0,0.00019671,2]
[365421073,1749661861222,-490.0,0.00019671,2]
[365421074,1749661861232,-490.0,0.00019671,2]
[365421075,1749661861241,-698.56,0.00019671,2]
[365421076,1749661861251,-572.72,0.00019671,2]
[365421077,1749661861260,-490.0,0.00019671,2]
[365421078,1749661861269,-5157.49,0.00019671,2]
[365421079,1749661861278,-644.73,0.00019671,2]
[365421080,1749661861292,-766.85,0.00019671,2]
[365421081,1749661861302,-3044.27,0.00019671,2]
[365421082,1749661861312,-490.0,0.00019671,2]
[365421083,1749661861321,-706.93,0.00019671,2]
[365421084,1749661861332,-532.69,0.00019671,2]
[365421085,1749661861342,-490.0,0.00019671,2]
[365421086,1749661861352,-750.82,0.00019671,2]
[365421087,1749661861362,-791.56,0.00019671,2]
[365421088,1749661861373,-2504.3,0.00019671,2]
[365421089,1749661861382,-490.0,0.00019671,2]
[365421090,1749661861392,-720.09,0.00019671,2]
[365421091,1749661861402,-6359.47,0.00019671,2]
[365421092,1749661861412,-490.0,0.00019671,2]
[365421093,1749661861422,-490.0,0.00019671,2]
[365421094,1749661861431,-524.42,0.00019671,2]
[365421095,1749661861440,-519.34,0.00019671,2]
[365421096,1749661861450,-783.79,0.00019671,2]
[365421097,1749661861459,-490.0,0.00019671,2]
[365421098,1749661861470,-890.39,0.00019671,2]
[365421099,1749661861479,-490.0,0.00019671,2]
[365421100,1749661861490,-697.65,0.00019671,2]
[365421101,1749661861499,-891.62,0.00019671,2]
[365421102,1749661861508,-292.53056381,0.00019671,2]
[365421103,1749661861518,-490.0,0.00019671,2]
[365421104,1749661861527,-490.0,0.00019671,2]
[365421105,1749661861537,-490.0,0.00019671,2]
[365421106,1749661861547,-1342.81,0.00019671,2]
[365421107,1749661861557,-913.55,0.00019671,2]
[365421108,1749661861566,-490.0,0.00019671,2]
[365421109,1749661861575,-817.65,0.00019671,2]
[365421110,1749661861585,-490.0,0.00019671,2]
[365421111,1749661861595,-3371.76,0.00019671,2]
[365421112,1749661861605,-490.0,0.00019671,2]
[365421113,1749661861615,-490.0,0.00019671,2]
[365421114,1749661861625,-589.73,0.00019671,2]
[365421115,1749661861635,-490.0,0.00019671,2]
[365421116,1749661861644,-490.0,0.00019671,2]
[365421117,1749661861654,-490.0,0.00019671,2]
[365421118,1749661861663,-490.0,0.00019671,2]
[365421119,1749661861673,-490.0,0.00019671,2]
[365421120,1749661861683,-490.0,0.00019671,2]
[365421121,1749661861694,-687.3,0.00019671,2]
[365421122,1749661861703,-1180.8,0.00019671,2]
[365421123,1749661861713,-490.0,0.00019671,2]
[365421124,1749661861722,-490.0,0.00019671,2]
[365421125,1749661861732,-1485.04,0.00019671,2]
[365421126,1749661861743,-2812.24,0.00019671,2]
[365421127,1749661861752,-992.67,0.00019671,2]
[365421128,1749661861761,-490.0,0.00019671,2]
[365421129,1749661861772,-490.0,0.00019671,2]
[365421130,1749661861781,-531.6,0.00019671,2]
[365421131,1749661861790,-490.0,0.00019671,2]
[365421132,1749661861800,-490.0,0.00019671,2]
[365421133,1749661861809,-490.0,0.00019671,2]
[365421134,1749661861818,-839.79,0.00019671,2]
[365421135,1749661861827,-734.49,0.00019671,2]
[365421136,1749661861835,-652.01,0.00019671,2]
[365421137,1749661861844,-490.0,0.00019671,2]
[365421138,1749661861853,-724.86,0.00019671,2]
[365421139,1749661861863,-501.91,0.00019671,2]
[365421140,1749661861872,-1408.56,0.00019671,2]
[365421141,1749661861880,-490.0,0.00019671,2]
[365421142,1749661861889,-640.62,0.00019671,2]
[365421143,1749661861898,-1591.12,0.00019671,2]
[365421144,1749661861907,-490.0,0.00019671,2]
[365421145,1749661861917,-490.0,0.00019671,2]
[365421146,1749661861926,-490.0,0.00019671,2]
[365421147,1749661861935,-589.33,0.00019671,2]
[365421148,1749661861943,-546.8,0.00019671,2]
[365421149,1749661861952,-490.0,0.00019671,2]
[365421150,1749661861962,-942.32,0.00019671,2]
[365421151,1749661861971,-549.1,0.00019671,2]
[365421152,1749661861980,-490.0,0.00019671,2]
[365421153,1749661861992,-490.0,0.00019671,2]
[365421154,1749661862001,-346.93185997,0.00019671,2]
[365421155,1749661862010,-5794.97,0.00019671,2]
[365421156,1749661862019,-490.0,0.00019671,2]
[365421157,1749661862029,-490.0,0.00019671,2]
[365421158,1749661862038,-490.0,0.00019671,2]
[365421159,1749661862048,-490.0,0.00019671,2]
[365421160,1749661862057,-490.0,0.00019671,2]
[365421161,1749661862067,-490.0,0.00019671,2]
[365421162,1749661862077,-490.0,0.00019671,2]
[365421163,1749661862086,-490.0,0.00019671,2]
[365421164,1749661862096,-490.0,0.00019671,2]
[365421165,1749661862105,-1159.67,0.00019671,2]
[365421166,1749661862114,-1337.03,0.00019671,2]
[365421167,1749661862124,-312.15,0.00019671,2]
[365421168,1749661862133,-610.72,0.00019671,2]
[365421169,1749661862142,-160.59,0.00019671,2]
[365421170,1749661862152,-490.0,0.00019671,2]
[365421171,1749661862161,-490.0,0.00019671,2]
[365421172,1749661862171,-586.7,0.00019671,2]
[365421173,1749661862180,-490.0,0.00019671,2]
[365421174,1749661862190,-490.0,0.00019671,2]
[365421175,1749661862199,-630.63,0.00019671,2]
[365421176,1749661862208,-598.63,0.00019671,2]
[365421177,1749661862218,-490.0,0.00019671,2]
[365421178,1749661862227,-539.21,0.00019671,2]
[365421179,1749661862236,-490.0,0.00019671,2]
[365421180,1749661862245,-490.0,0.00019671,2]
[365421181,1749661862255,-672.97,0.00019671,2]
[365421182,1749661862264,-490.0,0.00019671,2]
[365421183,1749661862274,-702.48,0.00019671,2]
[365421184,1749661862283,-477.31,0.00019671,2]
[365421185,1749661862292,-709.1,0.00019671,2]
[365421186,1749661862302,-533.7,0.00019671,2]
[365421187,1749661862311,-770.58,0.00019671,2]
[365421188,1749661862320,-490.0,0.00019671,2]
[365421189,1749661862330,-490.0,0.00019671,2]
[365421190,1749661862339,-490.0,0.00019671,2]
[365421191,1749661862349,-490.0,0.00019671,2]
[365421192,1749661862358,-490.0,0.00019671,2]
[365421193,1749661862367,-666.46,0.00019671,2]
[365421194,1749661862376,-490.0,0.00019671,2]
[365421195,1749661862386,-490.0,0.00019671,2]
[365421196,1749661862395,-490.0,0.00019671,2]
[365421197,1749661862404,-490.0,0.00019671,2]
[365421198,1749661862413,-7911.64,0.00019671,2]
[365421199,1749661862423,-490.0,0.00019671,2]
[365421200,1749661862432,-490.0,0.00019671,2]
[365421201,1749661862441,-242.02,0.00019671,2]
[365421202,1749661862451,-548.77,0.00019671,2]
[365421203,1749661862461,-490.0,0.00019671,2]
[365421204,1749661862471,-490.0,0.00019671,2]
[365421205,1749661862481,-490.0,0.00019671,2]
[365421206,1749661862492,-490.0,0.00019671,2]
[365421207,1749661862502,-490.0,0.00019671,2]
[365421208,1749661862511,-2149.14,0.00019671,2]
[365421209,1749661862521,-2227.24,0.00019671,2]
[365421210,1749661862531,-637.17,0.00019671,2]
[365421211,1749661862541,-1236.64,0.00019671,2]
[365421212,1749661862551,-490.0,0.00019671,2]
[365421213,1749661862560,-889.09,0.00019671,2]
[365421214,1749661862570,-490.0,0.00019671,2]
[365421215,1749661862579,-490.0,0.00019671,2]
[365421216,1749661862589,-490.0,0.00019671,2]
[365421217,1749661862598,-490.0,0.00019671,2]
[365421218,1749661862608,-1394.46,0.00019671,2]
[365421219,1749661862617,-674.0,0.00019671,2]
[365421220,1749661862627,-539.12,0.00019671,2]
[365421221,1749661862637,-684.33,0.00019671,2]
[365421222,1749661862646,-1624.25,0.00019671,2]
[365421223,1749661862656,-194.19033185,0.00019671,2]
[365421224,1749661862665,-877.05,0.00019671,2]
[365421225,1749661862674,-590.9,0.00019671,2]
[365421226,1749661862684,-490.0,0.00019671,2]
[365421227,1749661862698,-490.0,0.00019671,2]
[365421228,1749661862708,-1824.69,0.00019671,2]
[365421229,1749661862717,-490.0,0.00019671,2]
[365421230,1749661862727,-490.0,0.00019671,2]
[365421231,1749661862737,-490.0,0.00019671,2]
[365421232,1749661862747,-490.0,0.00019671,2]
[365421233,1749661862757,-490.0,0.00019671,2]
[365421234,1749661862768,-989.0,0.00019671,2]
[365421235,1749661862777,-905.37,0.00019671,2]
[365421236,1749661862786,-490.0,0.00019671,2]
[365421237,1749661862796,-490.0,0.00019671,2]
[365421238,1749661862805,-573.45,0.00019671,2]
[365421239,1749661862814,-490.0,0.00019671,2]
[365421240,1749661862823,-490.0,0.00019671,2]
[365421241,1749661862833,-490.0,0.00019671,2]
[365421242,1749661862842,-613.85,0.00019671,2]
[365421243,1749661862851,-490.0,0.00019671,2]
[365421244,1749661862861,-1072.07,0.00019671,2]
[365421245,1749661862871,-1012.71,0.00019671,2]
[365421246,1749661862880,-490.0,0.00019671,2]
[365421247,1749661862889,-490.0,0.00019671,2]
[365421248,1749661862899,-900.43,0.00019671,2]
[365421249,1749661862908,-495.37,0.00019671,2]
[365421250,1749661862917,-490.0,0.00019671,2]
[365421251,1749661862926,-2037.89,0.00019671,2]
[365421252,1749661862935,-490.0,0.00019671,2]
[365421253,1749661862945,-896.42,0.00019671,2]
[365421254,1749661862954,-490.0,0.00019671,2]
[365421255,1749661862963,-604.6,0.00019671,2]
[365421256,1749661862973,-490.0,0.00019671,2]
[365421257,1749661862982,-304.64,0.00019671,2]
[365421258,1749661862992,-490.0,0.00019671,2]
[365421259,1749661863001,-490.0,0.00019671,2]
[365421260,1749661863011,-490.0,0.00019671,2]
[365421261,1749661863020,-614.83,0.00019671,2]
[365421262,1749661863030,-1230.66,0.00019671,2]
[365421263,1749661863041,-490.0,0.00019671,2]
[365421264,1749661863052,-550.74,0.00019671,2]
[365421265,1749661863062,-750.13,0.00019671,2]
[365421266,1749661863072,-490.0,0.00019671,2]
[365421267,1749661863082,-490.0,0.00019671,2]
[365421268,1749661863092,-2038.55,0.00019671,2]
[365421269,1749661863102,-500.0,0.00019721,2]
[365421270,1749661863112,-1000.0,0.00019721,2]
[365421271,1749661863122,-1000.0,0.00019721,2]
[365421272,1749661863132,-1000.0,0.00019721,2]
[365421273,1749661863142,-1000.0,0.000198,2]
[365421274,1749661863152,-1186.528,0.000198,2]
[365421275,1749661863162,-500.0,0.00019834,2]
[365421276,1749661863173,-168.24,0.00019834,2]
[365421277,1749661863185,-1163.2,0.00019834,2]
[365421278,1749661863195,-2101.92,0.00019834,2]
[365421279,1749661863205,-500.0,0.00019834,2]
[365421280,1749661863215,-358.94788741,0.00019834,2]
[365421281,1749661863225,-502.32635105,0.00019834,2]
[365421282,1749661863235,-490.0,0.00019835,2]
[365421283,1749661863245,-490.0,0.00019835,2]
[365421284,1749661863255,-490.0,0.00019835,2]
[365421285,1749661863264,-490.0,0.00019835,2]
[365421286,1749661863274,-490.0,0.00019835,2]
[365421287,1749661863284,-490.0,0.00019835,2]
[365421288,1749661863294,-420.0,0.00019835,2]
[365421289,1749661863304,-490.0,0.00019835,2]
[365421290,1749661863314,-490.0,0.00019835,2]
[365421291,1749661863324,-490.0,0.00019835,2]
[365421292,1749661863334,-490.0,0.00019835,2]
[365421293,1749661863344,-490.0,0.00019835,2]
[365421294,1749661863355,-490.0,0.00019835,2]
[365421295,1749661863365,-490.0,0.00019835,2]
[365421296,1749661863377,-490.0,0.00019835,2]
[365421297,1749661863387,-490.0,0.00019835,2]
[365421298,1749661863397,-512.27,0.00019835,2]
[365421299,1749661863408,-509.63,0.00019835,2]
[365421300,1749661863417,-490.0,0.00019835,2]
[365421301,1749661863428,-490.0,0.00019835,2]
[365421302,1749661863438,-490.0,0.00019835,2]
[365421303,1749661863448,-490.0,0.00019835,2]
[365421304,1749661863459,-877.72,0.00019835,2]
[365421305,1749661863468,-733.99,0.00019835,2]
[365421306,1749661863478,-490.0,0.00019835,2]
[365421307,1749661863489,-490.0,0.00019835,2]
[365421308,1749661863500,-490.0,0.00019835,2]
[365421309,1749661863509,-490.0,0.00019835,2]
[365421310,1749661863519,-557.98,0.00019835,2]
[365421311,1749661863528,-250.0,0.00019835,2]
[365421312,1749661863538,-430.0,0.00019835,2]
[365421313,1749661863548,-490.0,0.00019835,2]
[365421314,1749661863558,-490.0,0.00019835,2]
[365421315,1749661863568,-490.0,0.00019835,2]
[365421316,1749661863578,-490.0,0.00019835,2]
[365421317,1749661863588,-560.35,0.00019835,2]
[365421318,1749661863598,-204.57545461,0.00019835,2]
[365421319,1749661863608,-297.01747693,0.00019835,2]
[365421320,1749661864184,-192.98252307,0.00019835,2]
[365421321,1749661864193,-490.0,0.00019835,2]
[365421322,1749661864203,-490.0,0.00019835,2]
[365421323,1749661864213,-490.0,0.00019835,2]
[365421324,1749661864223,-490.0,0.00019835,2]
[365421325,1749661864233,-303.72393814,0.00019835,2]
[365421326,1749661864248,-323.42606186,0.00019835,2]
[365421327,1749661864259,-887.4,0.00019835,2]
[365421328,1749661864269,-490.0,0.00019835,2]
[365421329,1749661864280,-490.0,0.00019835,2]
[365421330,1749661864290,-490.0,0.00019835,2]
[365421331,1749661864299,-796.14,0.00019835,2]
[365421332,1749661864309,-504.12,0.00019835,2]
[365421333,1749661864319,-490.0,0.00019835,2]
[365421334,1749661864329,-267.31,0.00019835,2]
[365421335,1749661864338,-490.0,0.00019835,2]
[365421336,1749661864348,-490.0,0.00019835,2]
[365421337,1749661864357,-490.0,0.00019835,2]
[365421338,1749661864367,-490.0,0.00019835,2]
[365421339,1749661864377,-1043.27,0.00019835,2]
[365421340,1749661864387,-490.0,0.00019835,2]
[365421341,1749661864396,-490.0,0.00019835,2]
[365421342,1749661864406,-530.15,0.00019835,2]
[365421343,1749661864415,-538.88,0.00019835,2]
[365421344,1749661864425,-497.98,0.00019835,2]
[365421345,1749661864434,-490.0,0.00019835,2]
[365421346,1749661864444,-490.0,0.00019835,2]
[365421347,1749661864453,-490.0,0.00019835,2]
[365421348,1749661864462,-924.56,0.00019835,2]
[365421349,1749661864472,-490.0,0.00019835,2]
[365421350,1749661864481,-780.45,0.00019835,2]
[365421351,1749661864491,-588.12,0.00019835,2]
[365421352,1749661864501,-539.52,0.00019835,2]
[365421353,1749661864510,-490.0,0.00019835,2]
[365421354,1749661864520,-490.0,0.00019835,2]
[365421355,1749661864529,-490.0,0.00019835,2]
[365421356,1749661864539,-735.24,0.00019835,2]
[365421357,1749661864548,-752.01,0.00019835,2]
[365421358,1749661864558,-868.47,0.00019835,2]
[365421359,1749661864568,-490.0,0.00019835,2]
[365421360,1749661864578,-490.0,0.00019835,2]
[365421361,1749661864588,-490.0,0.00019835,2]
[365421362,1749661864598,-490.0,0.00019835,2]
[365421363,1749661864607,-490.0,0.00019835,2]
[365421364,1749661864618,-1037.85,0.00019835,2]
[365421365,1749661864627,-490.0,0.00019835,2]
[365421366,1749661864637,-490.0,0.00019835,2]
[365421367,1749661864647,-495.1847368,0.00019835,2]
[365421368,1749661864656,-490.0,0.00019835,2]
[365421369,1749661864667,-490.0,0.00019835,2]
[365421370,1749661864676,-490.0,0.00019835,2]
[365421371,1749661864686,-490.0,0.00019835,2]
[365421372,1749661864698,-541.56,0.00019835,2]
[365421373,1749661864707,-1050.77,0.00019835,2]
[365421374,1749661864717,-490.0,0.00019835,2]
[365421375,1749661864727,-490.0,0.00019835,2]
[365421376,1749661864738,-490.0,0.00019835,2]
[365421377,1749661864748,-490.0,0.00019835,2]
[365421378,1749661864758,-490.0,0.00019835,2]
[365421379,1749661864769,-490.0,0.00019835,2]
[365421380,1749661864779,-490.0,0.00019835,2]
[365421381,1749661864790,-846.21,0.00019835,2]
[365421382,1749661864799,-205.23794494,0.00019835,2]
[365421383,1749661864809,-490.0,0.00019835,2]
[365421384,1749661864819,-490.0,0.00019835,2]
[365421385,1749661864828,-490.0,0.00019835,2]
[365421386,1749661864837,-490.0,0.00019835,2]
[365421387,1749661864847,-528.88,0.00019835,2]
[365421388,1749661864857,-490.0,0.00019835,2]
[365421389,1749661864867,-490.0,0.00019835,2]
[365421390,1749661864877,-490.0,0.00019835,2]
[365421391,1749661864886,-1204.48,0.00019835,2]
[365421392,1749661864896,-490.0,0.00019835,2]
[365421393,1749661864906,-490.0,0.00019835,2]
[365421394,1749661864916,-540.97,0.00019835,2]
[365421395,1749661864925,-490.0,0.00019835,2]
[365421396,1749661864934,-490.0,0.00019835,2]
[365421397,1749661864944,-490.0,0.00019835,2]
[365421398,1749661864953,-490.0,0.00019835,2]
[365421399,1749661864963,-360.00740803,0.00019835,2]
[365421400,1749661864973,-532.05,0.00019835,2]
[365421401,1749661864982,-490.0,0.00019835,2]
[365421402,1749661864993,-490.0,0.00019835,2]
[365421403,1749661865002,-490.0,0.00019835,2]
[365421404,1749661865011,-553.54,0.00019835,2]
[365421405,1749661865021,-490.0,0.00019835,2]
[365421406,1749661865031,-490.0,0.00019835,2]
[365421407,1749661865041,-490.0,0.00019835,2]
[365421408,1749661865051,-490.0,0.00019835,2]
[365421409,1749661865060,-490.0,0.00019835,2]
[365421410,1749661865069,-490.0,0.00019835,2]
[365421411,1749661865079,-490.0,0.00019835,2]
[365421412,1749661865089,-517.64,0.00019835,2]
[365421413,1749661865099,-490.0,0.00019835,2]
[365421414,1749661865109,-595.7,0.00019835,2]
[365421415,1749661865118,-490.0,0.00019835,2]
[365421416,1749661865128,-680.12,0.00019835,2]
[365421417,1749661865137,-464.09,0.00019835,2]
[365421418,1749661865147,-490.0,0.00019835,2]
[365421419,1749661865157,-490.0,0.00019835,2]
[365421420,1749661865166,-400.0,0.00019835,2]
[365421421,1749661865175,-490.0,0.00019835,2]
[365421422,1749661865185,-490.0,0.00019835,2]
[365421423,1749661865195,-490.0,0.00019835,2]
[365421424,1749661865204,-490.0,0.00019835,2]
[365421425,1749661865214,-490.0,0.00019835,2]
[365421426,1749661865223,-490.0,0.00019835,2]
[365421427,1749661865232,-490.0,0.00019835,2]
[365421428,1749661865243,-620.72,0.00019835,2]
[365421429,1749661865252,-490.0,0.00019835,2]
[365421430,1749661865261,-490.0,0.00019835,2]
[365421431,1749661865270,-490.0,0.00019835,2]
[365421432,1749661865280,-490.0,0.00019835,2]
[365421433,1749661865290,-490.0,0.00019835,2]
[365421434,1749661865300,-544.79166552,0.00019835,2]
[365421435,1749661865309,-490.0,0.00019835,2]
[365421436,1749661865319,-490.0,0.00019835,2]
[365421437,1749661865328,-490.0,0.00019835,2]
[365421438,1749661865338,-490.0,0.00019835,2]
[365421439,1749661865347,-273.91022964,0.00019835,2]
[365421440,1749661865361,-35.61099248,0.00019835,2]
[365421441,1749661865371,-490.0,0.00019835,2]
[365421442,1749661865381,-535.44,0.00019835,2]
[365421443,1749661865390,-490.0,0.00019835,2]
[365421444,1749661865399,-440.28100192,0.00019835,2]
[365421445,1749661865410,-49.71899808,0.00019835,2]
[365421446,1749661865420,-532.6,0.00019835,2]
[365421447,1749661865429,-405.65749783,0.00019835,2]
[365421448,1749661865440,-84.34250217,0.00019835,2]
[365421449,1749661865450,-490.0,0.00019835,2]
[365421450,1749661865461,-188.32800629,0.00019835,2]
[365421451,1749661865572,-204.0,0.00017442,2]
[365421452,1749661865582,-374.69917107,0.00019178,2]
[365421453,1749661865592,-301.67199371,0.00019835,2]
[365421454,1749661865602,-434.50905592,0.00019835,2]
[365421455,1749661865614,-116.13486982,0.00019835,2]
[365421456,1749661865625,-490.0,0.00019835,2]
[365421457,1749661865636,-490.0,0.00019835,2]
[365421458,1749661865646,-557.04,0.00019835,2]
[365421459,1749661865658,-524.57,0.00019835,2]
[365421460,1749661865668,-232.54013018,0.00019835,2]
[365421461,1749661865681,-257.45986982,0.00019835,2]
[365421462,1749661865692,-490.0,0.00019835,2]
[365421463,1749661865704,-777.72,0.00019835,2]
[365421464,1749661865715,-490.0,0.00019835,2]
[365421465,1749661865724,-490.0,0.00019835,2]
[365421466,1749661865735,-490.0,0.00019835,2]
[365421467,1749661865745,-490.0,0.00019835,2]
[365421468,1749661865755,-304.61430024,0.00019835,2]
[365421469,1749661865764,-490.0,0.00019835,2]
[365421470,1749661865776,-698.56,0.00019835,2]
[365421471,1749661865786,-572.72,0.00019835,2]
[365421472,1749661865796,-490.0,0.00019835,2]
[365421473,1749661865806,-4787.18076746,0.00019835,2]
[365421474,1749661865947,-490.0,0.00019178,2]
[365421475,1749661865956,-179.90824524,0.00019342,2]
[365421476,1749661865968,-290.09175476,0.00019342,2]
[365421477,1749661865979,-370.30923254,0.00019835,2]
[365421478,1749661865988,-644.73,0.00019835,2]
[365421479,1749661865998,-766.85,0.00019835,2]
[365421480,1749661866009,-515.8490127,0.00019835,2]
[365421481,1749661866020,-1177.1235911,0.00019835,2]
[365421482,1749661866031,-258.48164278,0.00019835,2]
[365421483,1749661866047,-480.0,0.00019178,2]
[365421484,1749661866057,-1092.81575342,0.00019835,2]
[365421485,1749661866066,-490.0,0.00019835,2]
[365421486,1749661866075,-706.93,0.00019835,2]
[365421487,1749661866084,-532.69,0.00019835,2]
[365421488,1749661866094,-490.0,0.00019835,2]
[365421489,1749661866103,-750.82,0.00019835,2]
[365421490,1749661866112,-791.56,0.00019835,2]
[365421491,1749661866122,-1604.22191716,0.00019835,2]
[365421492,1749661866134,-900.07808284,0.00019835,2]
[365421493,1749661866143,-490.0,0.00019835,2]
[365421494,1749661866153,-720.09,0.00019835,2]
[365421495,1749661866162,-17.33191736,0.00019835,2]
[365421496,1749661866651,-1000.0,0.00019078,2]
[365421497,1749661866661,-463.17201538,0.00019178,2]
[365421498,1749661866670,-416.71377893,0.00019178,2]
[365421499,1749661866679,-490.0,0.00019178,2]
[365421500,1749661866689,-219.73365254,0.00019261,2]
[365421501,1749661866700,-6342.13808264,0.00019835,2]
[365421502,1749661866709,-490.0,0.00019835,2]
[365421503,1749661866718,-490.0,0.00019835,2]
[365421504,1749661866728,-524.42,0.00019835,2]
[365421505,1749661866737,-783.79,0.00019835,2]
[365421506,1749661866748,-890.39,0.00019835,2]
[365421507,1749661866757,-490.0,0.00019835,2]
[365421508,1749661866766,-490.0,0.00019835,2]
[365421509,1749661866777,-697.65,0.00019835,2]
[365421510,1749661866786,-891.62,0.00019835,2]
[365421511,1749661866795,-635.46842003,0.00019835,2]
[365421512,1749661866804,-490.0,0.00019835,2]
[365421513,1749661866814,-490.0,0.00019835,2]
[365421514,1749661866823,-1342.81,0.00019835,2]
[365421515,1749661866831,-913.55,0.00019835,2]
[365421516,1749661866840,-490.0,0.00019835,2]
[365421517,1749661866849,-33.45085759,0.00019835,2]
[365421518,1749661866961,-675.129256,0.00019835,2]
[365421519,1749661866980,-264.4168396,0.00019178,2]
[365421520,1749661866991,-225.5831604,0.00019178,2]
[365421521,1749661867002,-470.0,0.00019342,2]
[365421522,1749661867011,-109.06988641,0.00019835,2]
[365421523,1749661867021,-490.0,0.00019835,2]
[365421524,1749661867031,-1816.26723734,0.00019835,2]
[365421525,1749661867042,-705.52841105,0.00019835,2]
[365421526,1749661867056,-849.96435161,0.00019835,2]
[365421527,1749661867065,-490.0,0.00019835,2]
[365421528,1749661867073,-490.0,0.00019835,2]
[365421529,1749661867083,-589.73,0.00019835,2]
[365421530,1749661867094,-490.0,0.00019835,2]
[365421531,1749661867103,-490.0,0.00019835,2]
[365421532,1749661867115,-490.0,0.00019835,2]
[365421533,1749661867126,-394.93420178,0.00019835,2]
[365421534,1749661867135,-490.0,0.00019835,2]
[365421535,1749661867144,-490.0,0.00019835,2]
[365421536,1749661867153,-687.3,0.00019835,2]
[365421537,1749661867163,-1180.8,0.00019835,2]
[365421538,1749661867172,-490.0,0.00019835,2]
[365421539,1749661867181,-490.0,0.00019835,2]
[365421540,1749661867191,-1485.04,0.00019835,2]
[365421541,1749661867201,-2812.24,0.00019835,2]
[365421542,1749661867210,-992.67,0.00019835,2]
[365421543,1749661867220,-490.0,0.00019835,2]
[365421544,1749661867230,-302.63348264,0.00019835,2]
[365421545,1749661867239,-531.6,0.00019835,2]
[365421546,1749661867249,-490.0,0.00019835,2]
[365421547,1749661867258,-490.0,0.00019835,2]
[365421548,1749661867267,-490.0,0.00019835,2]
[365421549,1749661867277,-839.79,0.00019835,2]
[365421550,1749661867287,-734.49,0.00019835,2]
[365421551,1749661867296,-652.01,0.00019835,2]
[365421552,1749661867305,-490.0,0.00019835,2]
[365421553,1749661867314,-724.86,0.00019835,2]
[365421554,1749661867323,-501.91,0.00019835,2]
[365421555,1749661867332,-1408.56,0.00019835,2]
[365421556,1749661867341,-560.11,0.00019835,2]
[365421557,1749661867353,-640.62,0.00019835,2]
[365421558,1749661867362,-1591.12,0.00019835,2]
[365421559,1749661867374,-490.0,0.00019835,2]
[365421560,1749661867386,-490.0,0.00019835,2]
[365421561,1749661867395,-490.0,0.00019835,2]